bitfinex/quotes_SOLUSD_20220212
["timestamp","ask_amount","ask_price","bid_price","bid_amount"]
[1644705867318,0.1199049,96.179,96.101,0.25]
[1644705868119,0.1199049,96.179,96.102,2.62390296]
[1644705868318,5.2,96.178,96.102,2.62390296]
[1644705868519,0.1199049,96.179,96.103,5.2]
[1644705868918,0.1199049,96.179,96.11,15.5961]
[1644705869319,0.1199049,96.179,96.111,2.62390296]
[1644705869521,0.1199049,96.179,96.111,7.82390296]
[1644705869920,0.1199049,96.179,96.112,106.92390296]
[1644705870321,0.1199049,96.179,96.113,2.62390296]
[1644705871241,0.1199049,96.179,96.12,15.5941]
[1644705871743,0.1199049,96.179,96.121,2.62390296]
[1644705872140,0.1199049,96.179,96.122,5.2]
[1644705872540,0.1199049,96.179,96.123,2.62390296]
[1644705872941,0.1199049,96.179,96.124,5.2]
[1644705873340,0.1199049,96.179,96.125,2.62390296]
[1644705873741,0.1199049,96.179,96.126,5.2]
[1644705874142,0.1199049,96.179,96.127,2.62390296]
[1644705874345,1.47005893,96.216,96.127,2.62390296]
[1644705874542,5.2,96.217,96.127,2.62390296]
[1644705874944,1.47005893,96.217,96.128,5.199]
[1644705875147,1.72005893,96.218,96.129,104.3]
[1644705875343,6.66805893,96.217,96.129,106.92390296]
[1644705875543,6.66805893,96.217,96.13,2.62390296]
[1644705875743,1.47005893,96.2,96.13,2.62390296]
[1644705876143,1.47005893,96.199,96.13,2.62390296]
[1644705876543,1.47005893,96.201,96.13,2.62390296]
[1644705877445,1.47005893,96.2,96.13,2.62390296]
[1644705877944,1.47005893,96.189,96.13,2.62390296]
[1644705878144,1.47005893,96.188,96.131,5.198]
[1644705878548,1.47005893,96.188,96.131,7.82190296]
[1644705878750,1.47005893,96.188,96.132,104.3]
[1644705878947,1.47005893,96.188,96.132,109.499]
[1644705879149,1.47005893,96.187,96.132,109.499]
[1644705879852,1.47005893,96.186,96.132,109.499]
[1644705880048,1.47005893,96.177,96.132,109.499]
[1644705880852,1.47005893,96.18,96.132,109.499]
[1644705881451,1.47005893,96.18,96.133,2.62390296]
[1644705881651,1.47005893,96.181,96.134,5.199]
[1644705881851,1.47005893,96.183,96.135,104.3]
[1644705882055,1.47005893,96.183,96.135,106.92390296]
[1644705882252,1.47005893,96.173,96.136,7.82290296]
[1644705882453,1.47005893,96.174,96.136,2.62390296]
[1644705882652,1.47005893,96.173,96.136,2.62390296]
[1644705882851,1.47005893,96.173,96.137,5.199]
[1644705883053,1.47005893,96.173,96.136,2.62390296]
[1644705883254,1.47005893,96.173,96.11,45.4636]
[1644705883453,1.47005893,96.161,96.11,45.4636]
[1644705883758,1.47005893,96.159,96.111,104.55]
[1644705883953,1.47005893,96.159,96.112,5.2]
[1644705884153,1.47005893,96.152,96.112,5.2]
[1644705884562,1.47005893,96.151,96.094,22.9945]
[1644705884763,1.47005893,96.143,96.09,15.5995]
[1644705884961,1.47005893,96.139,96.093,5.2]
[1644705885259,1.47005893,96.138,96.093,5.2]
[1644705885758,12.49,96.18,96.093,4.2]
[1644705885759,1.47005893,96.132,96.093,4.2]
[1644705886058,1.47005893,96.13,96.093,4.2]
[1644705886260,1.47005893,96.129,96.093,4.2]
[1644705886459,1.47005893,96.127,96.093,4.2]
[1644705886665,1.47005893,96.128,96.093,4.2]
[1644705886862,1.47005893,96.131,96.093,4.2]
[1644705887062,1.47005893,96.13,96.093,4.2]
[1644705887259,1.47005893,96.131,96.072,2.62390296]
[1644705887460,1.47005893,96.131,96.074,104.3]
[1644705887661,1.47005893,96.131,96.076,104.3]
[1644705887862,1.47005893,96.131,96.075,5.202]
[1644705887863,1.47005893,96.131,96.081,104.3]
[1644705888259,5.202,96.174,96.081,104.3]
[1644705888260,1.47005893,96.129,96.081,104.3]
[1644705888462,1.47005893,96.129,96.082,7.82390296]
[1644705888661,1.47005893,96.13,96.083,109.502]
[1644705888860,1.47005893,96.13,96.083,112.12590296]
[1644705889061,1.47005893,96.13,96.083,109.502]
[1644705889865,1.47005893,96.129,96.083,109.502]
[1644705890065,1.47005893,96.131,96.083,109.502]
[1644705891863,1.47005893,96.133,96.083,109.502]
[1644705892064,1.47005893,96.132,96.083,109.502]
[1644705892466,1.47005893,96.131,96.083,109.502]
[1644705893766,1.47005893,96.13,96.083,109.502]
[1644705894166,1.47005893,96.134,96.083,109.502]
[1644705894770,1.47005893,96.133,96.083,109.502]
[1644705895168,1.47005893,96.13,96.083,109.502]
[1644705895368,1.47005893,96.131,96.083,109.502]
[1644705896069,1.47005893,96.132,96.083,109.502]
[1644705896470,1.47005893,96.135,96.083,109.502]
[1644705896689,1.47005893,96.135,96.083,104.3]
[1644705897070,1.47005893,96.135,96.085,104.3]
[1644705897469,1.47005893,96.135,96.087,104.3]
[1644705897669,1.47005893,96.134,96.087,104.3]
[1644705897870,1.47005893,96.134,96.089,104.3]
[1644705898069,1.47005893,96.135,96.089,104.3]
[1644705898270,1.47005893,96.135,96.083,5.202]
[1644705898469,1.47005893,96.135,96.081,109.502]
[1644705898868,1.47005893,96.137,96.081,109.502]
[1644705899273,1.47005893,96.137,96.081,5.202]
[1644705900776,3.71896244,96.159,96.081,5.202]
[1644705900777,1.47005893,96.134,96.081,5.202]
[1644705901174,1.47005893,96.135,96.081,5.202]
[1644705902376,1.47005893,96.135,96.074,5.202]
[1644705902776,1.47005893,96.134,96.075,2.62390296]
[1644705902974,1.47005893,96.134,96.076,5.202]
[1644705903173,1.47005893,96.138,96.076,5.202]
[1644705903374,1.47005893,96.138,96.077,2.62390296]
[1644705903574,1.47005893,96.139,96.074,5.202]
[1644705903774,1.47005893,96.139,96.077,5.202]
[1644705903974,1.47005893,96.139,96.074,5.202]
[1644705904597,1.47005893,96.138,96.074,5.202]
[1644705905195,1.47005893,96.137,96.074,5.202]
[1644705905599,1.47005893,96.14,96.075,2.62390296]
[1644705905896,1.47005893,96.14,96.076,5.202]
[1644705906199,1.47005893,96.139,96.076,5.202]
[1644705906397,1.47005893,96.14,96.076,5.202]
[1644705906795,1.47005893,96.143,96.081,104.3]
[1644705906996,1.47005893,96.157,96.081,104.3]
[1644705907197,24.603,96.158,96.083,104.3]
[1644705907600,1.47005893,96.156,96.085,104.3]
[1644705907897,1.47005893,96.155,96.086,2.62390296]
[1644705908498,104.3,96.157,96.074,2.62390296]
[1644705908499,1.47005893,96.151,96.074,2.62390296]
[1644705908700,1.47005893,96.141,96.074,2.62390296]
[1644705908899,1.47005893,96.131,96.075,5.202]
[1644705909100,1.47005893,96.126,96.074,5.202]
[1644705909302,1.47005893,96.126,96.041,5.203]
[1644705909501,1.47005893,96.119,96.032,28.0497]
[1644705909903,1.47005893,96.118,96.032,28.0497]
[1644705910204,1.47005893,96.116,96.033,0.25]
[1644705910399,1.47005893,96.116,96.033,2.87390296]
[1644705910606,1.47005893,96.12,96.034,2.62390296]
[1644705910803,1.47005893,96.12,96.04,15.6085]
[1644705911003,1.47005893,96.115,96.04,15.6085]
[1644705911201,1.47005893,96.112,96.04,15.6085]
[1644705911402,1.47005893,96.113,96.041,5.203]
[1644705911603,1.47005893,96.112,96.041,5.203]
[1644705911801,1.47005893,96.112,96.035,5.204]
[1644705912001,5.204,96.111,96.035,5.204]
[1644705912201,6.67405893,96.111,96.035,5.204]
[1644705912401,1.47005893,96.111,96.035,5.204]
[1644705912601,1.47005893,96.11,96.035,5.204]
[1644705913000,1.47005893,96.11,96.036,0.25]
[1644705913201,1.47005893,96.112,96.037,5.204]
[1644705914203,1.47005893,96.11,96.037,5.204]
[1644705914602,1.47005893,96.109,96.037,5.204]
[1644705914802,1.47005893,96.107,96.036,0.25]
[1644705915000,1.47005893,96.107,96.037,5.204]
[1644705915403,1.47005893,96.111,96.037,5.204]
[1644705915805,1.47005893,96.112,96.037,5.204]
[1644705916008,1.47005893,96.106,96.037,5.204]
[1644705916205,1.47005893,96.096,96.037,5.204]
[1644705916406,1.47005893,96.09,96.037,5.204]
[1644705916605,1.47005893,96.093,96.037,0.008]
[1644705916807,12.49,96.09,96.037,0.008]
[1644705917005,28.1102,96.09,95.98,15.619]
[1644705917206,109.506,96.089,95.97,1.42406061]
[1644705917406,109.506,96.089,95.96,10.86655688]
[1644705917407,1.47005893,96.08,95.96,1.42406061]
[1644705917605,109.506,96.089,95.961,5.207]
[1644705917606,12.49,96.07,95.961,5.207]
[1644705917806,27.7182,96.069,95.947,5.207]
[1644705918015,15.6259,96.06,95.94,15.6244]
[1644705918206,15.6259,96.06,95.925,17.69572184]
[1644705918207,104.3,96.049,95.931,5.207]
[1644705918406,5.208,96.048,95.933,5.208]
[1644705918610,13.708,96.048,95.926,0.25]
[1644705918806,13.708,96.048,95.904,5.208]
[1644705918807,1.47005893,96.046,95.911,1.42406061]
[1644705919007,127.5582,96.047,95.904,17.69572184]
[1644705919008,1.47005893,96.033,95.904,17.69572184]
[1644705919205,5.208,96.045,95.904,17.69572184]
[1644705919206,28.1217,96.02,95.904,17.69572184]
[1644705919407,46.736,96.019,95.904,17.69572184]
[1644705919608,51.946,96.019,95.904,17.69572184]
[1644705920010,104.3,96.018,95.904,17.69572184]
[1644705920208,5.21,96.017,95.905,0.25]
[1644705921009,15.6333,96.01,95.89,104.3]
[1644705921210,15.6333,96.01,95.877,17.69572184]
[1644705921211,12.49,96.0,95.877,17.69572184]
[1644705921409,12.49,96.0,95.87,2.62390296]
[1644705921410,104.3,95.998,95.866,10.87516892]
[1644705921613,5.212,95.997,95.854,19.3196248]
[1644705922014,7.83590296,95.997,95.854,17.69572184]
[1644705922211,2.62390296,95.996,95.855,0.25]
[1644705922409,5.212,95.995,95.855,0.25]
[1644705922813,15.6364,95.99,95.86,15.6395]
[1644705923010,12.49,95.98,95.86,15.6395]
[1644705923412,5.212,95.979,95.86,15.6395]
[1644705923612,48.13,95.978,95.86,15.6395]
[1644705923814,5.212,95.977,95.86,15.6395]
[1644705924216,5.212,95.977,95.861,0.25]
[1644705926117,5.212,95.977,95.86,15.3895]
[1644705926315,5.212,95.977,95.861,0.25]
[1644705926515,15.6402,95.97,95.861,0.25]
[1644705926716,12.49,95.96,95.861,0.25]
[1644705926915,12.49,95.95,95.861,0.25]
[1644705927316,5.213,95.949,95.861,0.25]
[1644705929422,5.213,95.949,95.83,15.6435]
[1644705929621,2.62390296,95.948,95.816,10.87977962]
[1644705929819,5.214,95.947,95.78,12.49]
[1644705930018,104.3,95.946,95.789,17.69572184]
[1644705930218,68.84582751,95.947,95.789,17.69572184]
[1644705930219,104.3,95.944,95.789,17.69572184]
[1644705930419,12.49,95.93,95.794,22.7791]
[1644705930622,22.6892,95.929,95.795,0.024]
[1644705930818,27.9042,95.929,95.81,15.6461]
[1644705931025,27.9042,95.929,95.811,0.024]
[1644705932222,22.6892,95.929,95.811,0.024]
[1644705932424,15.6493,95.92,95.797,0.024]
[1644705932627,12.49,95.91,95.795,0.024]
[1644705932823,45.862,95.909,95.782,0.024]
[1644705933024,51.078,95.909,95.772,17.69572184]
[1644705933224,51.078,95.909,95.77,112.5]
[1644705933225,51.078,95.909,95.782,17.69572184]
[1644705933428,51.078,95.909,95.77,112.5]
[1644705933429,15.6535,95.89,95.771,0.024]
[1644705933727,15.6535,95.89,95.774,17.69572184]
[1644705933728,12.49,95.88,95.774,17.69572184]
[1644705934225,12.49,95.88,95.775,0.024]
[1644705934428,12.49,95.88,95.775,23.4486]
[1644705934629,12.49,95.88,95.78,15.6517]
[1644705934827,5.216,95.879,95.781,0.024]
[1644705937956,12.49,95.88,95.777,0.024]
[1644705938157,12.49,95.88,95.772,0.024]
[1644705938964,5.216,95.888,95.772,0.024]
[1644705939159,15.04,95.88,95.772,0.024]
[1644705939760,104.3,95.878,95.762,0.024]
[1644705939964,104.3,95.878,95.761,0.024]
[1644705939965,5.218,95.877,95.761,0.024]
[1644705940159,104.3,95.876,95.761,0.024]
[1644705940368,5.218,95.879,95.761,0.024]
[1644705940562,22.8785,95.878,95.761,0.024]
[1644705940761,5.218,95.877,95.761,0.024]
[1644705940966,5.218,95.877,95.761,0.274]
[1644705941162,24.3392,95.876,95.762,0.024]
[1644705941372,5.218,95.875,95.762,0.024]
[1644705941761,104.3,95.874,95.762,0.024]
[1644705941964,15.04,95.87,95.762,0.024]
[1644705942261,5.218,95.869,95.762,0.024]
[1644705942463,104.3,95.868,95.762,0.024]
[1644705942662,5.218,95.867,95.762,0.024]
[1644705942862,104.3,95.868,95.762,0.024]
[1644705945065,15.04,95.87,95.77,15.6541]
[1644705945366,5.218,95.898,95.772,104.3]
[1644705945567,49.3491,95.906,95.773,0.024]
[1644705945568,5.216,95.906,95.773,0.024]
[1644705945779,5.216,95.906,95.773,26.28125513]
[1644705945968,15.04,95.91,95.774,103.824]
[1644705946169,104.3,95.909,95.775,0.024]
[1644705946369,104.3,95.909,95.776,103.8]
[1644705946572,104.3,95.909,95.79,15.04]
[1644705946775,28.1211,95.908,95.8,15.6461]
[1644705946970,22.9051,95.908,95.801,103.8]
[1644705947368,5.216,95.907,95.802,2.62390296]
[1644705947569,5.216,95.907,95.803,23.4994]
[1644705947769,0.25,95.906,95.803,23.4994]
[1644705947970,0.25,95.906,95.804,2.62390296]
[1644705948770,0.25,95.906,95.82,15.6465]
[1644705949272,0.25,95.906,95.821,106.92390296]
[1644705949470,0.25,95.906,95.821,2.62390296]
[1644705949772,0.25,95.906,95.822,2.62390296]
[1644705950774,0.25,95.906,95.83,15.6446]
[1644705951779,0.25,95.906,95.822,2.62390296]
[1644705951975,104.3,95.904,95.797,2.62390296]
[1644705952176,15.04,95.89,95.781,2.62390296]
[1644705952774,5.216,95.889,95.781,2.62390296]
[1644705952974,15.04,95.89,95.782,48.7326]
[1644705953177,15.04,95.89,95.783,104.3]
[1644705953375,15.04,95.89,95.783,107.17390296]
[1644705953574,15.04,95.89,95.784,2.62390296]
[1644705953776,15.04,95.89,95.79,15.6514]
[1644705954177,5.216,95.902,95.791,2.62390296]
[1644705954381,2.93192378,95.937,95.791,2.62390296]
[1644705954382,28.1211,95.908,95.791,106.92390296]
[1644705954576,5.216,95.901,95.791,106.92390296]
[1644705954776,5.216,95.907,95.792,20.3196248]
[1644705954974,22.9051,95.908,95.792,20.3196248]
[1644705955174,22.9051,95.908,95.793,7.83990296]
[1644705955376,5.216,95.907,95.793,7.83990296]
[1644705955575,5.216,95.907,95.794,25.80700296]
[1644705955776,5.216,95.907,95.82,15.6461]
[1644705955974,22.9051,95.908,95.82,15.6461]
[1644705956175,22.9051,95.908,95.821,2.62390296]
[1644705956580,1.47005893,95.92,95.821,2.62390296]
[1644705956777,5.215,95.919,95.821,2.62390296]
[1644705957078,5.215,95.924,95.83,15.644]
[1644705957278,1.47005893,95.923,95.83,15.644]
[1644705957478,5.215,95.922,95.831,2.62390296]
[1644705957876,5.215,95.922,95.84,15.6427]
[1644705958076,1.47005893,95.924,95.84,15.6427]
[1644705958278,1.47005893,95.925,95.841,7.83790296]
[1644705958479,24.98275893,95.926,95.841,2.62390296]
[1644705958679,23.5127,95.926,95.842,2.62390296]
[1644705958979,5.464,95.925,95.825,2.62390296]
[1644705959178,1.47005893,95.915,95.825,2.62390296]
[1644705959378,1.47005893,95.914,95.83,15.6438]
[1644705959582,1.47005893,95.919,95.831,5.215]
[1644705959782,16.51005893,95.92,95.831,7.83890296]
[1644705959978,16.51005893,95.92,95.82,104.3]
[1644705959979,15.04,95.92,95.832,2.62390296]
[1644705960381,15.04,95.92,95.833,5.215]
[1644705960782,15.04,95.92,95.84,15.6429]
[1644705961182,15.04,95.92,95.841,2.62390296]
[1644705962882,5.214,95.919,95.85,15.6416]
[1644705963286,5.214,95.922,95.851,2.62390296]
[1644705963583,5.214,95.925,95.851,2.62390296]
[1644705963784,15.04,95.94,95.851,2.62390296]
[1644705963785,0.25,95.924,95.851,2.62390296]
[1644705964083,1.47005893,95.932,95.86,15.6401]
[1644705964285,5.214,95.932,95.86,15.6401]
[1644705964489,5.214,95.932,95.861,2.62390296]
[1644705964688,1.47005893,95.935,95.861,12.38390296]
[1644705964886,5.213,95.934,95.87,15.6384]
[1644705965186,1.47005893,95.943,95.87,15.6384]
[1644705965385,1.47005893,95.951,95.871,2.62390296]
[1644705965591,1.47005893,95.954,95.871,2.62390296]
[1644705965885,5.213,95.952,95.871,2.62390296]
[1644705966086,1.47005893,95.955,95.89,15.6347]
[1644705966287,5.213,95.954,95.89,15.6347]
[1644705966586,1.47005893,95.961,95.89,15.6347]
[1644705966795,1.47005893,95.969,95.891,23.2155]
[1644705966989,47.3861,95.989,95.892,104.3]
[1644705966990,1.47005893,95.975,95.892,104.3]
[1644705967194,1.47005893,95.975,95.9,15.6321]
[1644705967392,1.47005893,95.984,95.9,15.6321]
[1644705967692,1.47005893,95.984,95.892,106.92390296]
[1644705967693,1.47005893,95.983,95.902,104.3]
[1644705967893,1.47005893,95.986,95.902,104.3]
[1644705968091,1.47005893,96.005,95.904,104.3]
[1644705968291,125.5245,96.057,95.921,104.3]
[1644705968292,1.47005893,96.016,95.921,104.3]
[1644705968494,1.47005893,96.023,95.93,15.04]
[1644705968691,1.47005893,96.024,95.931,24.5056]
[1644705968892,1.47005893,96.024,95.932,104.3]
[1644705969191,48.8927,96.057,95.932,104.3]
[1644705969192,1.47005893,96.029,95.933,5.208]
[1644705969393,1.47005893,96.046,95.933,29.7783]
[1644705969593,1.47005893,96.047,95.933,32.40220296]
[1644705969793,1.47005893,96.047,95.94,15.6211]
[1644705969991,1.47005893,96.047,95.941,5.208]
[1644705970192,1.47005893,96.049,95.941,7.83190296]
[1644705970393,1.47005893,96.049,95.942,2.62390296]
[1644705970595,1.47005893,96.05,95.942,7.83190296]
[1644705970797,1.47005893,96.05,95.943,121.99572184]
[1644705970996,5.208,96.049,95.944,5.208]
[1644705971198,1.47005893,96.045,95.944,31.50600296]
[1644705971398,1.47005893,96.058,95.97,15.6192]
[1644705971598,1.47005893,96.06,95.97,15.6192]
[1644705971807,1.47005893,96.06,95.96,52.0638]
[1644705971808,1.47005893,96.061,95.971,2.62390296]
[1644705972311,0.25,96.06,95.971,2.62390296]
[1644705972910,0.25,96.06,95.98,15.6204]
[1644705976012,0.25,96.06,95.98,18.24430296]
[1644705977013,15.04,96.07,95.98,18.24430296]
[1644705977213,5.206,96.069,95.98,15.6204]
[1644705977416,5.206,96.069,95.981,106.92390296]
[1644705977613,5.207,96.087,96.001,104.3]
[1644705977815,5.206,96.09,96.001,104.3]
[1644705978013,5.205,96.102,96.002,2.62390296]
[1644705978313,5.205,96.106,96.002,2.62390296]
[1644705978511,48.73635893,96.112,96.002,2.62390296]
[1644705978512,5.205,96.108,96.002,2.62390296]
[1644705978713,48.73635893,96.112,96.002,2.62390296]
[1644705978913,5.205,96.111,96.01,15.6137]
[1644705979112,5.205,96.111,96.011,104.3]
[1644705979313,0.25,96.11,96.012,5.205]
[1644705979515,0.25,96.11,96.011,104.3]
[1644705979714,5.205,96.109,96.011,104.3]
[1644705980513,5.205,96.109,96.01,15.6137]
[1644705980713,2.62390296,96.108,96.01,15.6137]
[1644705980913,0.25,96.11,96.01,15.6137]
[1644705981115,5.205,96.109,96.01,15.6137]
[1644705981312,5.205,96.109,95.998,23.2333]
[1644705981714,5.205,96.111,95.998,23.2333]
[1644705981914,47.2663,96.112,96.0,15.04]
[1644705982518,47.2663,96.112,96.001,104.3]
[1644705982715,5.205,96.111,96.001,104.3]
[1644705983217,0.25,96.11,96.001,104.3]
[1644705983416,5.205,96.109,96.001,104.3]
[1644705983615,0.25,96.11,96.001,104.3]
[1644705985020,5.205,96.109,96.001,104.3]
[1644705986223,1.47005893,96.103,96.001,104.3]
[1644705986422,1.47005893,96.104,96.001,104.3]
[1644705986823,1.47005893,96.106,96.001,104.3]
[1644705987322,1.47005893,96.105,96.001,104.3]
[1644705987525,1.47005893,96.107,95.999,104.3]
[1644705987722,15.29,96.11,95.999,104.3]
[1644705987723,1.47005893,96.109,95.999,104.3]
[1644705987922,16.76005893,96.11,95.999,104.3]
[1644705988322,16.51005893,96.11,95.999,104.3]
[1644705988524,1.47005893,96.103,95.999,104.3]
[1644705989124,1.47005893,96.104,95.999,104.3]
[1644705989325,1.47005893,96.105,95.999,104.3]
[1644705989526,6.67505893,96.104,95.999,104.3]
[1644705989726,1.72005893,96.104,95.999,104.3]
[1644705989927,5.205,96.103,95.999,104.3]
[1644705990130,6.67505893,96.103,95.999,104.3]
[1644705990330,1.47005893,96.093,95.999,104.3]
[1644705991028,1.47005893,96.09,95.999,104.3]
[1644705991428,1.47005893,96.089,95.999,104.3]
[1644705991628,1.47005893,96.09,95.999,104.3]
[1644705992028,1.47005893,96.089,95.999,104.3]
[1644705992231,6.67505893,96.088,96.0,5.205]
[1644705992430,1.47005893,96.09,95.999,104.3]
[1644705992633,5.205,96.087,95.999,104.3]
[1644705992831,1.47005893,96.09,96.0,5.205]
[1644705993035,5.205,96.089,95.999,104.3]
[1644705993233,5.205,96.089,96.001,5.205]
[1644705993430,5.205,96.089,96.0,5.205]
[1644705993632,1.47005893,96.077,96.0,5.205]
[1644705994032,1.47005893,96.078,96.0,5.205]
[1644705994632,1.47005893,96.077,96.0,5.205]
[1644705995036,1.47005893,96.077,95.999,109.506]
[1644705995532,1.47005893,96.075,95.999,109.506]
[1644705996734,1.47005893,96.062,95.999,109.506]
[1644705996934,1.47005893,96.061,95.999,109.506]
[1644705997537,1.47005893,96.062,95.999,109.506]
[1644705997937,1.47005893,96.063,95.999,109.506]
[1644705998537,1.47005893,96.062,95.999,104.3]
[1644705998937,1.47005893,96.062,96.0,5.206]
[1644705999336,1.47005893,96.062,95.999,104.3]
[1644705999535,1.47005893,96.06,95.999,104.3]
[1644705999739,1.47005893,96.06,96.0,5.206]
[1644705999938,1.47005893,96.06,95.999,104.3]
[1644706000137,1.47005893,96.06,96.0,5.206]
[1644706000339,1.47005893,96.061,96.0,5.206]
[1644706001437,1.47005893,96.059,96.0,5.206]
[1644706002039,1.47005893,96.06,96.0,5.206]
[1644706002237,1.47005893,96.061,96.0,5.206]
[1644706002839,1.47005893,96.064,96.0,5.206]
[1644706003440,1.47005893,96.062,96.0,5.206]
[1644706003640,1.47005893,96.062,95.999,104.3]
[1644706004246,1.47005893,96.063,95.999,104.3]
[1644706004445,1.47005893,96.063,96.0,5.206]
[1644706004640,1.47005893,96.064,96.0,5.206]
[1644706005466,1.47005893,96.061,96.0,5.206]
[1644706005645,1.47005893,96.061,95.999,114.716775]
[1644706006345,1.47005893,96.062,95.999,114.716775]
[1644706007347,1.47005893,96.058,95.999,114.716775]
[1644706008546,1.47005893,96.059,95.999,114.716775]
[1644706009348,1.47005893,96.059,96.0,7.82990296]
[1644706009548,1.47005893,96.058,96.0,5.206]
[1644706009948,1.47005893,96.059,96.0,5.206]
[1644706010147,1.47005893,96.059,95.999,114.716775]
[1644706010955,1.47005893,96.06,96.0,5.206]
[1644706011452,1.47005893,96.059,96.0,5.206]
[1644706011856,1.47005893,96.056,96.0,5.206]
[1644706012254,1.47005893,96.058,96.0,5.206]
[1644706012455,1.47005893,96.057,96.0,5.206]
[1644706012656,1.47005893,96.058,96.0,5.206]
[1644706013075,1.47005893,96.059,96.0,5.206]
[1644706013277,1.47005893,96.06,96.0,5.206]
[1644706013477,1.47005893,96.059,96.0,5.206]
[1644706013676,1.47005893,96.059,95.999,114.716775]
[1644706013878,1.47005893,96.06,95.999,114.716775]
[1644706014277,1.47005893,96.062,95.999,114.716775]
[1644706015480,1.47005893,96.064,95.999,114.716775]
[1644706015680,1.47005893,96.064,96.0,5.206]
[1644706016082,1.47005893,96.066,96.0,5.206]
[1644706016281,1.47005893,96.065,96.0,5.206]
[1644706016583,1.47005893,96.065,95.999,114.716775]
[1644706018178,1.47005893,96.064,95.999,114.716775]
[1644706018379,1.47005893,96.065,95.999,114.716775]
[1644706018683,1.47005893,96.066,95.999,114.716775]
[1644706019482,1.47005893,96.066,95.999,10.416775]
[1644706019682,5.206,96.083,95.999,10.416775]
[1644706019683,1.47005893,96.056,95.999,10.416775]
[1644706019884,1.47005893,96.04,95.999,7.5e-05]
[1644706020083,1.47005893,96.028,95.999,7.5e-05]
[1644706020283,1.47005893,96.026,95.999,7.5e-05]
[1644706020582,1.47005893,96.03,95.999,7.5e-05]
[1644706020784,1.47005893,96.031,95.999,7.5e-05]
[1644706021388,1.47005893,96.029,95.999,7.5e-05]
[1644706021786,1.47005893,96.03,95.999,7.5e-05]
[1644706022486,1.47005893,96.029,95.999,7.5e-05]
[1644706023488,1.47005893,96.03,95.999,7.5e-05]
[1644706023691,6.67705893,96.029,95.999,7.5e-05]
[1644706023887,1.47005893,96.029,95.999,7.5e-05]
[1644706024089,5.207,96.028,95.999,7.5e-05]
[1644706024288,46.7024,96.054,95.999,7.5e-05]
[1644706024289,1.47005893,96.034,95.999,7.5e-05]
[1644706024489,1.47005893,96.036,95.999,7.5e-05]
[1644706025088,1.47005893,96.035,95.999,7.5e-05]
[1644706026294,5.207,96.034,95.999,7.5e-05]
[1644706026493,1.47005893,96.035,95.999,7.5e-05]
[1644706027294,5.207,96.052,95.999,7.5e-05]
[1644706027295,1.47005893,96.038,95.999,7.5e-05]
[1644706027594,1.47005893,96.04,95.999,7.5e-05]
[1644706028193,1.47005893,96.039,95.999,7.5e-05]
[1644706028394,105.77005893,96.039,95.999,7.5e-05]
[1644706028595,1.47005893,96.017,95.999,7.5e-05]
[1644706028796,9.49555888,96.038,95.999,7.5e-05]
[1644706028797,1.47005893,96.011,95.999,7.5e-05]
[1644706028996,7.53445887,96.01,95.999,7.5e-05]
[1644706029194,48.71165893,96.009,95.999,7.5e-05]
[1644706029596,53.91965893,96.009,95.999,7.5e-05]
[1644706029895,52.4496,96.009,95.999,7.5e-05]
[1644706031894,47.2416,96.009,95.999,7.5e-05]
[1644706032295,5.208,96.008,95.999,7.5e-05]
[1644706033898,109.508,96.008,95.999,7.5e-05]
[1644706034496,104.3,96.008,95.999,7.5e-05]
[1644706035397,5.208,96.007,95.999,7.5e-05]
[1644706043928,5.208,96.007,95.889,0.25]